bitfinex/quotes_SOLUSD_20241121
["timestamp","ask_amount","ask_price","bid_price","bid_amount"]
[1732176375080,23.776884,241.5,241.37,14.77074923]
[1732176375599,15.3407,241.51,241.43,14.77074923]
[1732176375898,15.3407,241.51,241.44,14.77074923]
[1732176376087,15.3407,241.51,241.43,14.77074923]
[1732176376294,15.3407,241.51,241.44,14.77074923]
[1732176376811,15.3407,241.51,241.47,14.77074923]
[1732176376983,15.3407,241.51,241.46,14.77074923]
[1732176377385,15.3407,241.51,241.38,24.39806712]
[1732176377386,15.3407,241.51,241.43,14.77074923]
[1732176379095,15.3407,241.51,241.42,14.77074923]
[1732176379600,15.3407,241.51,241.41,14.77074923]
[1732176380009,15.3407,241.51,241.42,14.77074923]
[1732176380210,15.3407,241.51,241.44,14.77074923]
[1732176380994,15.3407,241.51,241.42,14.77074923]
[1732176381194,15.3407,241.51,241.41,14.77074923]
[1732176381412,15.3407,241.51,241.4,14.77074923]
[1732176381891,4.1407,241.5,241.38,14.77074923]
[1732176382502,15.3407,241.51,241.4,14.77074923]
[1732176382708,15.3407,241.51,241.38,14.77074923]
[1732176382898,19.4813,241.51,241.38,14.77074923]
[1732176383318,23.776884,241.5,241.37,14.77074923]
[1732176383610,23.776884,241.5,241.38,14.77074923]
[1732176383798,6.4775,241.49,241.38,14.77074923]
[1732176383994,6.4775,241.49,241.35,14.77074923]
[1732176384511,4.1411,241.48,241.35,14.77074923]
[1732176384817,4.1411,241.48,241.36,14.77074923]
[1732176385310,4.1411,241.48,241.3,23.776884]
[1732176385492,4.1411,241.48,241.36,14.77074923]
[1732176386213,16.3435,241.47,241.28,23.776884]
[1732176386520,4.1414,241.46,241.35,14.77074923]
[1732176387088,4.1414,241.46,241.33,14.77074923]
[1732176387288,16.3435,241.47,241.36,14.77074923]
[1732176387489,16.3435,241.47,241.34,14.77074923]
[1732176388098,19.15321813,241.47,241.31,14.77074923]
[1732176388319,6.1412,241.45,241.35,14.77074923]
[1732176388494,10.2829,241.45,241.26,23.776884]
[1732176388815,22.1421,241.43,241.28,14.77074923]
[1732176389113,22.1421,241.43,241.19,4.82169215]
[1732176389426,4.6417,241.45,241.24,14.77074923]
[1732176389427,22.1421,241.41,241.24,14.77074923]
[1732176390325,22.1421,241.41,241.3,14.77074923]
[1732176390813,22.1421,241.41,241.28,14.77074923]
[1732176391017,26.2844,241.41,241.28,14.77074923]
[1732176393102,26.2844,241.41,241.27,14.77074923]
[1732176393309,26.2844,241.41,241.25,14.77074923]
[1732176394203,58.895884,241.4,241.18,4.04190449]
[1732176394392,58.895884,241.4,240.86,3.24]
[1732176394393,15.119,241.37,241.14,6.3]
[1732176394604,15.119,241.37,241.22,14.77074923]
[1732176394800,6.5751,241.36,241.22,14.77074923]
[1732176395820,6.5751,241.36,241.26,14.77074923]
[1732176396209,6.5751,241.36,241.2,14.77074923]
[1732176396210,6.5751,241.36,241.28,14.77074923]
[1732176397023,6.5751,241.36,241.2,14.77074923]
[1732176397024,6.5751,241.36,241.35,14.77074923]
[1732176397509,6.5751,241.36,241.33,14.77074923]
[1732176397706,6.5751,241.36,241.34,14.77074923]
[1732176397923,6.5751,241.36,241.35,14.77074923]
[1732176398504,6.5751,241.36,241.34,14.77074923]
[1732176398705,15.119,241.37,241.35,14.77074923]
[1732176399813,21.4306,241.43,241.36,14.77074923]
[1732176400020,21.4306,241.43,241.39,14.77074923]
[1732176400399,21.4306,241.43,241.4,14.77074923]
[1732176400999,15.8115,241.49,241.42,14.77074923]
[1732176401314,15.8115,241.49,241.47,14.77074923]
[1732176401503,16.4385,241.55,241.48,14.77074923]
[1732176401706,16.4385,241.55,241.5,14.77074923]
[1732176402428,16.4385,241.64,241.55,23.776884]
[1732176402727,15.5065,241.7,241.63,14.77074923]
[1732176402927,15.5065,241.7,241.64,14.77074923]
[1732176403107,15.5065,241.7,241.6,14.77074923]
[1732176404722,15.5065,241.7,241.6,23.6378398]
[1732176405132,15.5065,241.7,241.56,23.6378398]
[1732176406221,20.0,241.69,241.53,23.776884]
[1732176406425,20.0,241.69,241.52,23.6378398]
[1732176407329,4.1377,241.68,241.52,23.6378398]
[1732176408001,4.1377,241.68,241.53,23.776884]
[1732176408807,4.1377,241.68,241.43,5.61488098]
[1732176409009,4.1377,241.68,241.51,23.6378398]
[1732176409323,4.1377,241.68,241.53,23.6378398]
[1732176409617,20.0,241.69,241.57,23.6378398]
[1732176410220,20.0,241.69,241.47,0.5]
[1732176410221,20.0,241.69,241.58,23.6378398]
[1732176410401,20.0,241.69,241.49,5.3272477]
[1732176410402,15.5065,241.7,241.61,23.6378398]
[1732176411215,15.5065,241.7,241.64,23.6378398]
[1732176411424,15.5065,241.7,241.63,23.6378398]
[1732176411627,15.5065,241.7,241.62,23.6378398]
[1732176411926,15.5065,241.7,241.56,23.6378398]
[1732176412122,15.5065,241.7,241.55,23.6378398]
[1732176412428,15.5065,241.7,241.5,23.776884]
[1732176412429,19.6438,241.7,241.54,23.6378398]
[1732176412827,19.6438,241.7,241.56,23.6378398]
[1732176413417,19.6438,241.7,241.55,23.6378398]
[1732176413618,19.6438,241.7,241.54,23.6378398]
[1732176413929,19.6438,241.7,241.55,23.6378398]
[1732176414334,19.6438,241.7,241.5,23.776884]
[1732176414335,20.0,241.69,241.54,23.6378398]
[1732176415014,30.014884,241.68,241.52,23.6378398]
[1732176415228,43.776884,241.66,241.49,23.6378398]
[1732176415730,20.0,241.66,241.52,23.6378398]
[1732176415907,20.0,241.66,241.5,23.6378398]
[1732176416229,20.0,241.64,241.48,23.6378398]
[1732176416918,15.3688,241.62,241.48,23.6378398]
[1732176417114,15.3688,241.62,241.46,23.6378398]
[1732176417321,15.3688,241.62,241.5,23.6378398]
[1732176417639,15.3688,241.62,241.51,23.6378398]
[1732176418212,15.3688,241.62,241.52,23.6378398]
[1732176418418,15.3688,241.62,241.56,23.6378398]
[1732176419030,15.3688,241.62,241.54,23.6378398]
[1732176419226,15.3688,241.62,241.48,0.62086421]
[1732176419428,15.3688,241.62,241.51,23.6378398]
[1732176419926,15.3688,241.62,241.53,23.6378398]
[1732176420143,15.3688,241.62,241.54,23.6378398]
[1732176420717,15.3688,241.62,241.52,23.6378398]
[1732176420916,15.3688,241.62,241.48,23.6378398]
[1732176421226,15.3688,241.62,241.52,23.6378398]
[1732176423414,15.3688,241.62,241.5,23.6378398]
[1732176423612,15.3688,241.62,241.48,23.6378398]
[1732176423812,15.3688,241.62,241.5,23.6378398]
[1732176424209,15.3688,241.62,241.54,23.6378398]
[1732176424420,15.3688,241.62,241.45,0.62101444]
[1732176424421,15.3688,241.62,241.56,23.6378398]
[1732176425118,15.3688,241.62,241.58,23.6378398]
[1732176425448,16.2601,241.68,241.6,23.6378398]
[1732176425623,16.2601,241.68,241.67,23.6378398]
[1732176425935,0.5,241.84,241.67,23.6378398]
[1732176425936,6.3198,241.73,241.67,23.6378398]
[1732176426721,6.3198,241.73,241.68,14.76468948]
[1732176427715,15.7818,241.74,241.72,14.76468948]
[1732176428115,6.2791,241.78,241.72,14.76468948]
[1732176428429,6.2791,241.78,241.75,14.76468948]
[1732176428612,6.2791,241.78,241.76,23.60629131]
[1732176428813,15.2583,241.79,241.76,23.60629131]
[1732176429541,15.2583,241.79,241.71,23.60629131]
[1732176429724,15.2583,241.79,241.66,23.60629131]
[1732176430244,19.3942,241.79,241.64,23.60629131]
[1732176430539,19.3942,241.79,241.58,4.61488098]
[1732176430540,23.776884,241.78,241.62,23.60629131]
[1732176431020,6.0119,241.77,241.62,23.60629131]
[1732176431415,6.0119,241.77,241.64,23.60629131]
[1732176431617,23.776884,241.76,241.6,23.60629131]
[1732176431822,23.776884,241.76,241.53,5.00858435]
[1732176431823,23.776884,241.76,241.58,23.60629131]
[1732176432337,15.2395,241.73,241.58,23.60629131]
[1732176432716,20.0,241.71,241.54,23.60629131]
[1732176433015,23.776884,241.68,241.52,23.60629131]
[1732176433235,23.776884,241.66,241.52,23.60629131]
[1732176434125,15.2395,241.67,241.54,23.60629131]
[1732176434822,15.2395,241.67,241.6,23.60629131]
[1732176435327,15.2395,241.67,241.61,23.60629131]
[1732176435519,15.2395,241.67,241.62,23.60629131]
[1732176435715,15.2395,241.67,241.59,23.60629131]
[1732176435922,15.2395,241.67,241.55,23.60629131]
[1732176436123,15.2395,241.67,241.53,23.60629131]
[1732176436731,15.2395,241.67,241.57,23.60629131]
[1732176437930,15.2395,241.67,241.59,23.60629131]
[1732176438338,15.2395,241.67,241.61,23.60629131]
[1732176439020,15.2395,241.67,241.57,23.60629131]
[1732176440835,15.2395,241.67,241.59,23.60629131]
[1732176441235,15.2395,241.67,241.56,23.60629131]
[1732176441932,15.2395,241.67,241.54,23.60629131]
[1732176442129,19.3774,241.67,241.54,23.60629131]
[1732176442446,15.2395,241.67,241.52,23.60629131]
[1732176442752,15.2395,241.67,241.54,23.60629131]
[1732176443635,30.129784,241.66,241.5,23.60629131]
[1732176444148,23.776884,241.64,241.5,23.60629131]
[1732176445344,23.776884,241.64,241.44,9.94212868]
[1732176445532,23.776884,241.62,241.48,23.60629131]
[1732176445733,6.3529,241.61,241.48,23.60629131]
[1732176446142,6.3529,241.61,241.46,23.60629131]
[1732176446530,23.776884,241.6,241.46,23.60629131]
[1732176447045,15.2201,241.59,241.44,23.60629131]
[1732176447257,6.1057,241.57,241.42,23.60629131]
[1732176447435,23.776884,241.56,241.42,23.60629131]
[1732176448457,23.776884,241.56,241.44,23.60629131]
[1732176448962,6.1057,241.57,241.44,23.60629131]
[1732176449251,23.776884,241.56,241.44,23.60629131]
[1732176449554,23.776884,241.56,241.42,23.60629131]
[1732176449930,6.1057,241.57,241.46,23.60629131]
[1732176450534,6.1057,241.57,241.5,23.60629131]
[1732176450728,6.1057,241.57,241.44,23.60629131]
[1732176450729,6.1057,241.57,241.52,14.78298642]
[1732176452146,6.1057,241.57,241.54,14.78298642]
[1732176452552,15.2201,241.59,241.56,14.78298642]
[1732176452736,15.2201,241.59,241.58,14.78298642]
[1732176453333,15.2201,241.59,241.52,14.78298642]
[1732176453552,15.2201,241.59,241.54,14.78298642]
[1732176454760,15.2201,241.59,241.52,14.78298642]
[1732176455358,15.2201,241.59,241.48,14.78298642]
[1732176456758,15.2201,241.59,241.48,23.65979546]
[1732176457537,15.2201,241.59,241.52,23.65979546]
[1732176457843,15.2201,241.59,241.5,23.65979546]
[1732176458154,15.2201,241.59,241.48,23.65979546]
[1732176458539,15.2201,241.59,241.46,23.65979546]
[1732176459745,15.2201,241.59,241.48,23.65979546]
[1732176460662,15.2201,241.59,241.5,23.65979546]
[1732176461158,15.2201,241.59,241.49,23.65979546]
[1732176463364,15.2201,241.59,241.4,4.61488098]
[1732176463554,15.2201,241.59,241.44,23.65979546]
[1732176463760,15.2201,241.59,241.46,23.65979546]
[1732176464762,15.2201,241.59,241.48,23.65979546]
[1732176467873,15.2201,241.59,241.55,23.65979546]
[1732176472037,15.2201,241.59,241.53,23.65979546]
[1732176472248,15.2201,241.59,241.51,23.65979546]
[1732176472742,15.2201,241.59,241.49,23.65979546]
[1732176473672,15.2201,241.59,241.51,23.65979546]
[1732176474266,15.2201,241.59,241.53,23.65979546]
[1732176474444,15.2201,241.59,241.55,23.65979546]
[1732176474648,15.2201,241.59,241.53,23.65979546]
[1732176476865,15.2201,241.59,241.54,14.78007145]
[1732176477254,15.2201,241.59,241.52,14.78007145]
[1732176477560,15.2201,241.59,241.48,14.78007145]
[1732176477759,15.2201,241.59,241.5,14.78007145]
[1732176482269,15.2201,241.59,241.48,14.78007145]
[1732176482650,15.2201,241.59,241.46,14.78007145]
[1732176483564,29.968884,241.58,241.44,14.78007145]
[1732176483972,29.968884,241.58,241.38,4.60767879]
[1732176483973,23.776884,241.56,241.38,4.60767879]
[1732176484173,23.776884,241.54,241.4,14.78007145]
[1732176484975,23.776884,241.52,241.38,14.78007145]
[1732176485175,23.776884,241.5,241.36,14.78007145]
[1732176485468,23.776884,241.48,241.34,14.78007145]
[1732176485851,23.776884,241.46,241.34,14.78007145]
[1732176486254,23.776884,241.44,241.29,5.3272477]
[1732176486462,23.776884,241.44,241.31,14.78007145]
[1732176487462,22.776884,241.44,241.31,14.78007145]
[1732176488872,6.3721,241.43,241.29,20.10731915]
[1732176489094,16.1557,241.42,241.27,14.78007145]
[1732176489252,16.1557,241.42,241.25,14.78007145]
[1732176489581,30.148984,241.41,241.25,14.78007145]
[1732176490058,30.148984,241.41,241.29,14.78007145]
[1732176491474,30.148984,241.41,241.26,5.3272477]
[1732176491475,30.148984,241.41,241.27,14.78007145]
[1732176491652,30.148984,241.41,241.29,14.78007145]
[1732176492378,30.148984,241.41,241.27,20.10731915]
[1732176492879,6.3721,241.41,241.31,14.78007145]
[1732176493074,6.3721,241.41,241.35,14.78007145]
[1732176493378,6.3721,241.41,241.37,14.78007145]
[1732176494457,6.3721,241.41,241.39,14.78007145]
[1732176497277,21.203,241.47,241.39,14.78007145]
[1732176497479,21.203,241.47,241.41,14.78007145]
[1732176498268,21.203,241.47,241.37,14.78007145]
[1732176498663,21.203,241.47,241.35,19.39495243]
[1732176499690,21.203,241.47,241.37,14.78007145]
[1732176499865,21.203,241.47,241.39,14.78007145]
[1732176500379,21.203,241.47,241.37,5.3272477]
[1732176500588,21.203,241.47,241.41,14.78007145]
[1732176500970,21.203,241.47,241.39,14.78007145]
[1732176501164,21.203,241.47,241.35,19.39495243]
[1732176503281,21.203,241.47,241.37,14.78007145]
[1732176503500,21.203,241.47,241.39,14.78007145]
[1732176503970,21.203,241.47,241.41,14.78007145]
[1732176504871,21.203,241.47,241.45,14.78007145]
[1732176505572,22.1517,241.58,241.45,14.78007145]
[1732176505783,22.1517,241.58,241.48,14.78007145]
[1732176508067,22.1517,241.58,241.43,5.3272477]
[1732176508271,22.1517,241.58,241.52,14.78007145]
[1732176509080,22.1517,241.58,241.5,14.78007145]
[1732176509594,22.1517,241.58,241.46,14.78007145]
[1732176511692,22.1517,241.58,241.43,5.3272477]
[1732176511693,23.776884,241.57,241.44,14.78007145]
[1732176512672,23.776884,241.57,241.46,14.78007145]
[1732176512867,22.1517,241.58,241.46,14.78007145]
[1732176513185,22.1517,241.58,241.48,14.78007145]
[1732176514075,23.776884,241.57,241.46,14.78007145]
[1732176516792,22.1517,241.58,241.48,14.78007145]
[1732176517091,22.1517,241.58,241.46,14.78007145]
[1732176517489,23.776884,241.57,241.46,14.78007145]
[1732176517985,22.1517,241.58,241.46,14.78007145]
[1732176518379,22.1517,241.58,241.45,14.78007145]
[1732176519790,23.776884,241.57,241.43,14.78007145]
[1732176520296,23.776884,241.57,241.45,14.78007145]
[1732176521695,22.1517,241.58,241.49,14.78007145]
[1732176523179,22.1517,241.58,241.46,5.3272477]
[1732176523180,22.1517,241.58,241.47,14.78007145]
[1732176529607,22.1517,241.58,241.49,14.78007145]
[1732176531381,22.1517,241.58,241.47,14.78007145]
[1732176531881,23.776884,241.57,241.45,14.78007145]
[1732176534001,23.776884,241.57,241.41,9.93492649]
[1732176534002,23.776884,241.57,241.43,14.78007145]
[1732176537987,23.776884,241.57,241.44,14.78007145]
[1732176538383,23.776884,241.55,241.42,14.78007145]
[1732176538601,38.949484,241.53,241.39,4.61488098]
[1732176538799,38.949484,241.53,241.38,14.78007145]
[1732176539499,23.776884,241.51,241.38,14.78007145]
[1732176539701,23.776884,241.51,241.36,14.78007145]
[1732176539882,23.776884,241.49,241.36,14.78007145]
[1732176543385,39.039084,241.47,241.34,14.78007145]
[1732176543701,39.039084,241.47,241.36,14.78007145]
[1732176544605,39.039084,241.47,241.38,14.78007145]
[1732176544798,39.039084,241.47,241.39,14.78007145]
[1732176545992,39.039084,241.47,241.38,14.78007145]
[1732176546200,39.039084,241.47,241.37,14.78007145]
[1732176547217,39.039084,241.47,241.31,14.54980747]
[1732176547218,39.039084,241.47,241.36,14.78007145]
[1732176548705,39.039084,241.47,241.36,9.47344692]
[1732176549407,39.039084,241.47,241.37,9.47344692]
[1732176549811,39.039084,241.47,241.38,9.47344692]
[1732176550194,15.2622,241.47,241.4,9.47344692]
[1732176550394,15.2622,241.47,241.41,9.47344692]
[1732176550795,15.2622,241.47,241.44,9.47344692]
[1732176551009,15.2622,241.47,241.46,9.47344692]
[1732176551209,21.8042,241.6,241.46,9.47344692]
[1732176551407,21.8042,241.6,241.48,9.47344692]
[1732176552010,21.8042,241.6,241.49,9.47344692]
[1732176552706,21.8042,241.6,241.49,14.78670938]
[1732176553107,23.776884,241.59,241.49,14.78670938]
[1732176553911,21.8042,241.6,241.51,14.78670938]
[1732176554115,21.8042,241.6,241.49,14.78670938]
[1732176554494,21.8042,241.6,241.47,14.78670938]
[1732176554700,21.8042,241.6,241.45,14.78670938]
[1732176555127,23.776884,241.59,241.45,14.78670938]
[1732176556126,23.776884,241.59,241.47,14.78670938]
[1732176556297,23.776884,241.59,241.48,20.11395708]
[1732176556497,21.8042,241.6,241.5,14.78670938]
[1732176558018,23.776884,241.59,241.5,14.78670938]
[1732176559923,23.776884,241.59,241.48,5.3272477]
[1732176560227,23.776884,241.59,241.44,175.78670938]
[1732176560399,23.776884,241.59,241.44,14.78670938]
[1732176560827,23.776884,241.57,241.43,4.61488098]
[1732176561009,6.2149,241.56,241.42,14.78670938]
[1732176561211,23.776884,241.55,241.42,14.78670938]
[1732176562309,23.776884,241.55,241.44,14.78670938]
[1732176562502,23.776884,241.55,241.45,20.11395708]
[1732176563917,23.776884,241.55,241.45,25.91070254]
[1732176564306,6.2149,241.56,241.47,14.78670938]
[1732176564507,6.2149,241.56,241.49,14.78670938]
[1732176564713,6.2149,241.56,241.5,5.79674546]
[1732176568319,6.2149,241.56,241.53,14.78670938]
[1732176569108,22.3722,241.63,241.55,14.78670938]
[1732176569328,22.3722,241.63,241.61,14.78670938]
[1732176570211,22.3722,241.63,241.61,21.77252151]
[1732176570522,21.1639,241.73,241.62,13.88129317]
[1732176570731,21.1639,241.73,241.68,14.78670938]
[1732176571657,21.1639,241.73,241.64,14.78670938]
[1732176572124,25.3007,241.73,241.64,14.78670938]
[1732176572311,25.3007,241.73,241.62,14.78670938]
[1732176572518,23.776884,241.72,241.62,14.78670938]
[1732176572713,23.776884,241.7,241.58,14.78670938]
[1732176573312,23.776884,241.7,241.6,14.78670938]
[1732176574425,6.4674,241.69,241.58,14.78670938]
[1732176574639,23.776884,241.66,241.56,21.77252151]
[1732176574818,23.776884,241.66,241.58,14.78670938]
[1732176575127,23.776884,241.66,241.59,14.78670938]
[1732176577127,23.776884,241.66,241.56,6.98581213]
[1732176577128,23.776884,241.66,241.57,14.78670938]
[1732176583304,23.776884,241.66,241.59,14.78670938]
[1732176584309,23.776884,241.66,241.57,14.78670938]
[1732176585632,27.915084,241.66,241.55,14.78670938]
[1732176585811,27.915084,241.66,241.53,14.78670938]
[1732176586309,23.776884,241.64,241.53,14.78670938]
[1732176587517,27.915284,241.64,241.53,14.78670938]
[1732176587715,15.3604,241.58,241.41,161.0]
[1732176587914,6.2495,241.56,241.42,14.78670938]
[1732176588121,6.2495,241.56,241.44,14.78670938]
[1732176588122,23.776884,241.55,241.44,14.78670938]
[1732176589421,16.2263,241.54,241.44,14.78670938]
[1732176589623,23.776884,241.53,241.44,14.78670938]
[1732176590424,23.776884,241.53,241.42,14.78670938]
[1732176591019,27.917184,241.53,241.42,14.78670938]
[1732176591226,27.917184,241.53,241.4,14.78670938]
[1732176593526,23.776884,241.51,241.4,14.78670938]
[1732176595712,16.0082,241.5,241.38,14.78670938]
[1732176595916,23.776884,241.49,241.38,14.78670938]
[1732176596333,23.776884,241.49,241.36,14.78670938]
[1732176597637,23.776884,241.49,241.38,14.78670938]
[1732176601343,23.776884,241.49,241.4,14.78670938]
[1732176602239,23.776884,241.49,241.32,175.78670938]
[1732176602240,23.776884,241.49,241.36,14.78670938]
[1732176602628,23.776884,241.47,241.36,14.78670938]
[1732176604150,27.918184,241.47,241.36,14.78670938]
[1732176604335,23.776884,241.45,241.36,14.78670938]
[1732176605426,23.776884,241.45,241.38,14.78670938]
[1732176605950,23.776884,241.45,241.36,14.78670938]
[1732176607142,23.776884,241.45,241.38,14.78670938]
[1732176607738,23.776884,241.45,241.36,14.78670938]
[1732176608245,27.918484,241.45,241.34,14.78670938]
[1732176608952,23.776884,241.43,241.34,14.78670938]
[1732176611457,23.776884,241.43,241.37,14.78670938]
[1732176611965,6.1133,241.44,241.41,14.78670938]
[1732176612145,6.1133,241.44,241.43,14.78670938]
[1732176612348,6.1133,241.44,241.43,20.24691097]
[1732176612657,16.1498,241.46,241.43,20.24691097]
[1732176612658,16.1498,241.46,241.43,9.46882749]
[1732176613158,16.1498,241.46,241.41,9.46882749]
[1732176614752,16.1498,241.46,241.41,14.79789306]
[1732176615060,16.1498,241.46,241.43,14.79789306]
[1732176615639,16.1498,241.46,241.45,14.79789306]
[1732176615941,6.4822,241.5,241.45,14.79789306]
[1732176616142,6.4822,241.5,241.48,14.79789306]
[1732176617937,16.4741,241.52,241.48,14.79789306]
[1732176618158,16.4741,241.52,241.5,14.79789306]
[1732176619659,16.4741,241.52,241.46,14.79789306]
[1732176622141,16.4741,241.52,241.48,14.79789306]
[1732176622759,16.4741,241.52,241.46,14.79789306]
[1732176624757,16.4741,241.52,241.48,14.79789306]
[1732176625745,16.4741,241.52,241.5,14.79789306]
[1732176626050,6.4833,241.56,241.5,14.79789306]
[1732176626266,6.4833,241.56,241.54,14.79789306]
[1732176626764,15.9009,241.58,241.54,14.79789306]
[1732176627643,15.9009,241.58,241.56,14.79789306]
[1732176627841,6.2918,241.61,241.56,14.79789306]
[1732176628064,6.2918,241.61,241.55,5.15794556]
[1732176628065,6.2918,241.61,241.59,14.79789306]
[1732176628262,6.2918,241.61,241.57,14.79789306]
[1732176629964,6.2918,241.61,241.59,14.79789306]
[1732176631158,6.2918,241.61,241.57,14.79789306]
[1732176632853,6.2918,241.61,241.55,14.79789306]
[1732176633660,6.2918,241.61,241.53,14.79789306]
[1732176633661,23.776884,241.6,241.53,14.79789306]
[1732176634262,23.776884,241.6,241.53,19.95583862]
[1732176634752,23.776884,241.6,241.53,20.25809465]
[1732176635070,23.776884,241.6,241.54,5.15794556]
[1732176635262,6.2918,241.61,241.57,14.79789306]
[1732176635466,15.9009,241.64,241.59,14.79789306]
[1732176635672,6.1618,241.67,241.6,5.15794556]
[1732176635859,6.1618,241.67,241.63,14.79789306]
[1732176636276,6.1618,241.67,241.6,5.15794556]
[1732176637172,23.776884,241.66,241.6,5.15794556]
[1732176638964,6.1618,241.67,241.61,14.79789306]
[1732176639570,6.1618,241.67,241.63,14.79789306]
[1732176639756,6.1618,241.67,241.61,14.79789306]
[1732176640677,23.776884,241.69,241.62,5.15794556]
[1732176640855,23.776884,241.69,241.61,14.79789306]
[1732176642689,15.5055,241.7,241.63,14.79789306]
[1732176642981,15.5055,241.7,241.56,19.54294418]
[1732176642982,23.776884,241.69,241.61,14.79789306]
[1732176644783,23.776884,241.69,241.6,9.45600243]
[1732176645686,23.776884,241.69,241.58,9.45600243]
[1732176645883,23.776884,241.69,241.6,9.45600243]
[1732176646187,23.776884,241.69,241.58,9.45600243]
[1732176646387,27.914384,241.69,241.54,9.45600243]
[1732176646565,23.776884,241.67,241.52,9.45600243]
[1732176647382,23.776884,241.67,241.54,9.45600243]
[1732176647587,23.776884,241.67,241.51,161.0]
[1732176647588,23.776884,241.67,241.57,9.45600243]
[1732176647792,23.776884,241.67,241.55,9.45600243]
[1732176648692,23.776884,241.67,241.55,14.78059359]
[1732176648990,27.914784,241.67,241.55,14.78059359]
[1732176649171,23.776884,241.67,241.55,14.78059359]
[1732176650372,27.914784,241.67,241.53,19.52564471]
[1732176650885,6.4152,241.64,241.49,14.78059359]
[1732176651090,38.847984,241.63,241.49,14.78059359]
[1732176651279,38.847984,241.63,241.47,14.78059359]
[1732176652170,4.1387,241.62,241.45,14.78059359]
[1732176652373,16.4799,241.58,241.44,165.74505112]
[1732176652693,23.776884,241.57,241.45,14.78059359]
[1732176654868,23.776884,241.57,241.49,14.78059359]
[1732176658077,23.776884,241.57,241.51,14.78059359]
[1732176658282,23.776884,241.57,241.49,14.78059359]
[1732176660496,16.4799,241.58,241.55,14.78059359]
[1732176660697,6.5907,241.6,241.5,9.59266382]
[1732176660698,6.5907,241.6,241.57,14.78059359]
[1732176660879,15.2204,241.63,241.59,14.78059359]
[1732176662594,15.2204,241.63,241.61,14.78059359]
[1732176662806,6.3386,241.66,241.61,14.78059359]
[1732176663899,16.4359,241.69,241.65,14.78059359]
[1732176664102,6.038,241.73,241.67,14.78059359]
[1732176665694,6.038,241.73,241.69,14.78059359]
[1732176666899,6.038,241.73,241.67,14.78059359]
[1732176667200,23.776884,241.72,241.63,14.78059359]
[1732176667383,23.776884,241.72,241.61,14.78059359]
[1732176672497,23.776884,241.72,241.6,161.0]
[1732176672706,23.776884,241.72,241.59,14.78059359]
[1732176673002,23.776884,241.72,241.61,14.78059359]
[1732176673706,23.776884,241.72,241.63,14.78059359]
[1732176673883,6.038,241.73,241.65,14.78059359]
[1732176674218,6.038,241.73,241.67,14.78059359]
[1732176675011,6.038,241.73,241.65,14.78059359]
[1732176676308,6.038,241.73,241.63,4.74505112]
[1732176676609,23.776884,241.72,241.62,161.0]
[1732176677293,23.776884,241.72,241.65,14.78059359]
[1732176677700,6.038,241.73,241.67,14.78059359]
[1732176679213,6.038,241.73,241.69,14.78059359]
[1732176680795,15.4513,241.75,241.69,14.78059359]
[1732176680999,15.4513,241.75,241.69,175.78059359]
[1732176682491,15.4513,241.75,241.69,161.0]
[1732176683316,23.776884,241.74,241.69,161.0]
[1732176683713,23.776884,241.74,241.69,175.78059359]
[1732176684891,23.776884,241.74,241.69,161.0]
[1732176685297,15.4513,241.75,241.69,161.0]
[1732176685298,15.4513,241.75,241.69,175.78059359]
[1732176685618,15.4513,241.75,241.71,14.78059359]
[1732176685990,15.4513,241.75,241.69,14.78059359]
[1732176686195,15.4513,241.75,241.67,14.78059359]
[1732176686611,15.4513,241.75,241.67,9.45053979]
[1732176688623,15.4513,241.75,241.71,9.45053979]
[1732176688920,15.4513,241.75,241.73,9.45053979]
[1732176690115,6.44556,241.79,241.73,9.45053979]
[1732176693300,22.62512876,241.89,241.77,9.45053979]
[1732176693497,16.1775,241.89,241.81,9.45053979]
[1732176694621,19.00375755,241.89,241.81,9.45053979]
[1732176695020,23.776884,241.88,241.77,161.0]
[1732176695210,23.776884,241.88,241.8,9.45053979]
[1732176696727,23.776884,241.88,241.79,14.75217952]
[1732176697020,23.776884,241.88,241.77,14.75217952]
[1732176697230,23.776884,241.88,241.74,165.74505112]
[1732176697231,23.776884,241.88,241.75,14.75217952]
[1732176697433,27.911184,241.88,241.73,14.75217952]